bitfinex/quotes_BTCUSD_20241103
["timestamp","ask_amount","ask_price","bid_price","bid_amount"]
[1730633580941,0.11320108,68429.0,68428.0,0.00082]
[1730633581167,0.12685532,68429.0,68428.0,0.00082]
[1730633581384,0.11320106,68429.0,68428.0,0.00082]
[1730633582982,0.11420106,68429.0,68428.0,0.00082]
[1730633583599,0.11320106,68429.0,68428.0,0.00082]
[1730633583801,0.11620106,68429.0,68428.0,0.00082]
[1730633584005,0.11920106,68429.0,68428.0,0.00082]
[1730633584231,0.11320106,68429.0,68428.0,0.00082]
[1730633584647,0.12120106,68429.0,68428.0,0.00082]
[1730633585071,0.04350106,68429.0,68428.0,0.00082]
[1730633586406,0.04350106,68429.0,68428.0,0.00582]
[1730633586621,0.04350106,68429.0,68428.0,0.0137426]
[1730633587044,0.02165425,68429.0,68428.0,0.0137426]
[1730633587907,0.02165425,68429.0,68428.0,0.26433964]
[1730633588138,0.02165425,68429.0,68428.0,0.31183964]
[1730633588362,0.02165425,68429.0,68428.0,0.31091704]
[1730633588577,0.02165425,68429.0,68428.0,0.35469906]
[1730633588578,0.008,68429.0,68428.0,0.35469906]
[1730633589018,0.008,68429.0,68428.0,0.31591704]
[1730633589258,0.00164,68433.0,68432.0,0.038]
[1730633589476,0.00164,68433.0,68432.0,0.31509704]
[1730633589689,0.00164,68433.0,68432.0,0.52230297]
[1730633590574,0.00164,68433.0,68432.0,0.53330297]
[1730633590791,0.00164,68433.0,68432.0,0.54330297]
[1730633590792,0.00364,68433.0,68432.0,0.54330297]
[1730633591005,0.00264,68433.0,68432.0,0.53330297]
[1730633591456,0.00364,68433.0,68432.0,0.64330297]
[1730633591660,0.00364,68433.0,68432.0,0.63330297]
[1730633591875,0.00264,68433.0,68432.0,0.62230297]
[1730633592302,0.00364,68433.0,68432.0,0.63430297]
[1730633592944,0.00264,68433.0,68432.0,0.6220982]
[1730633593162,0.00364,68433.0,68432.0,0.6360982]
[1730633593366,0.00364,68433.0,68432.0,0.6490982]
[1730633593367,0.00464,68433.0,68432.0,0.6490982]
[1730633595278,0.00464,68433.0,68432.0,0.60351449]
[1730633595489,0.00464,68433.0,68432.0,0.6909146]
[1730633595951,0.00464,68433.0,68432.0,0.60351449]
[1730633596175,0.00464,68433.0,68432.0,0.64901089]
[1730633596396,0.00464,68433.0,68432.0,0.75824039]
[1730633596673,0.00464,68433.0,68432.0,0.64901089]
[1730633596901,0.00464,68433.0,68432.0,0.75823601]
[1730633597597,0.00464,68433.0,68432.0,0.60351449]
[1730633598492,0.00464,68433.0,68432.0,0.69086719]
[1730633599115,0.00464,68433.0,68432.0,0.60351449]
[1730633599319,0.00464,68433.0,68432.0,0.6908577]
[1730633599959,0.00464,68433.0,68432.0,0.66901912]
[1730633600384,0.00464,68433.0,68432.0,0.75721449]
[1730633601033,0.00464,68433.0,68432.0,0.84486449]
[1730633601911,0.00464,68433.0,68432.0,0.91010519]
[1730633603395,0.00464,68433.0,68432.0,0.74893743]
[1730633603600,0.00464,68433.0,68432.0,0.68344704]
[1730633605551,0.00464,68433.0,68432.0,0.72709395]
[1730633605984,0.00464,68433.0,68432.0,0.68344704]
[1730633606206,0.00464,68433.0,68432.0,0.72709206]
[1730633606419,0.00464,68433.0,68432.0,0.68344704]
[1730633606626,0.00464,68433.0,68432.0,0.72709197]
[1730633607255,0.00464,68433.0,68432.0,0.57339197]
[1730633607466,0.00464,68433.0,68432.0,0.41909704]
[1730633607669,0.00464,68433.0,68432.0,0.31709704]
[1730633608314,0.00464,68433.0,68432.0,0.23529704]
[1730633609156,0.00464,68433.0,68432.0,0.25829704]
[1730633609374,0.00464,68433.0,68432.0,0.26121887]
[1730633609574,0.00464,68433.0,68432.0,0.26321887]
[1730633609985,0.00464,68433.0,68432.0,0.3068638]
[1730633610232,0.00464,68433.0,68432.0,0.30394197]
[1730633610607,0.00464,68433.0,68432.0,0.38714197]
[1730633610808,0.00464,68433.0,68432.0,0.38713244]
[1730633611016,0.00464,68433.0,68432.0,0.84597236]
[1730633611485,0.00464,68433.0,68432.0,0.93326222]
[1730633612566,0.00464,68433.0,68432.0,0.8481639]
[1730633612771,0.00464,68433.0,68432.0,0.98088566]
[1730633612942,0.00464,68433.0,68432.0,0.8935958]
[1730633613173,0.00464,68433.0,68432.0,1.00270813]
[1730633613388,0.00464,68433.0,68432.0,0.8935958]
[1730633613592,0.00464,68433.0,68432.0,0.9228158]
[1730633614341,0.00264,68433.0,68432.0,1.01786137]
[1730633614567,0.00264,68433.0,68432.0,1.03186137]
[1730633614787,0.00264,68433.0,68432.0,1.01886137]
[1730633614985,0.00264,68433.0,68432.0,1.03286137]
[1730633615224,0.00364,68433.0,68432.0,1.03066983]
[1730633615565,0.00264,68433.0,68432.0,1.01666983]
[1730633615989,0.00364,68433.0,68432.0,1.03066983]
[1730633616395,0.00264,68433.0,68432.0,0.90762426]
[1730633616592,0.00264,68433.0,68432.0,1.01666983]
[1730633616869,0.00264,68433.0,68432.0,0.9238158]
[1730633617096,0.00264,68433.0,68432.0,0.9098158]
[1730633617279,0.00164,68433.0,68432.0,0.9098158]
[1730633617477,0.00164,68433.0,68432.0,1.01003311]
[1730633617687,0.00164,68433.0,68432.0,0.99603311]
[1730633618109,0.00164,68433.0,68432.0,0.99703311]
[1730633618519,0.00164,68433.0,68432.0,1.01003311]
[1730633618724,0.00164,68433.0,68432.0,1.007838]
[1730633619350,0.00164,68433.0,68432.0,0.993838]
[1730633619584,0.00164,68433.0,68432.0,0.980838]
[1730633619753,0.00164,68433.0,68432.0,0.994838]
[1730633619955,0.00164,68433.0,68432.0,0.980838]
[1730633620386,0.00164,68433.0,68432.0,0.994838]
[1730633620728,0.00164,68433.0,68432.0,0.980838]
[1730633620913,0.00164,68433.0,68432.0,1.008838]
[1730633621128,0.00164,68433.0,68432.0,0.994838]
[1730633621464,0.00164,68433.0,68432.0,2.240238]
[1730633622144,0.00164,68433.0,68432.0,2.15302426]
[1730633622787,0.00164,68433.0,68432.0,2.26206983]
[1730633622994,0.00164,68433.0,68432.0,2.15302426]
[1730633623219,0.00164,68433.0,68432.0,2.25424674]
[1730633623766,0.00164,68433.0,68432.0,2.16702426]
[1730633625427,0.00164,68433.0,68432.0,2.27606983]
[1730633627481,0.00164,68433.0,68432.0,2.16702426]
[1730633628903,0.00164,68433.0,68432.0,2.16657812]
[1730633631230,0.00164,68433.0,68432.0,2.29753493]
[1730633632236,0.00164,68433.0,68432.0,2.16657812]
[1730633632953,0.00164,68433.0,68432.0,1.92967812]
[1730633633178,0.00164,68433.0,68432.0,1.88217812]
[1730633633352,0.00164,68433.0,68432.0,0.63677812]
[1730633633569,0.00164,68433.0,68432.0,0.54798112]
[1730633633749,0.00164,68433.0,68432.0,0.60751118]
[1730633633950,0.00164,68433.0,68432.0,0.51998112]
[1730633634180,0.00164,68433.0,68432.0,0.49076112]
[1730633634558,0.07884,68433.0,68432.0,0.36276112]
[1730633634825,0.07884,68433.0,68432.0,0.46433402]
[1730633635037,0.07884,68433.0,68432.0,0.39076112]
[1730633635237,0.07884,68433.0,68432.0,0.37676112]
[1730633635462,0.07884,68433.0,68432.0,0.39876112]
[1730633636280,0.07884,68433.0,68432.0,0.40376112]
[1730633636454,0.00164,68433.0,68432.0,0.40376112]
[1730633637075,0.00164,68433.0,68432.0,0.40576112]
[1730633637468,0.00264,68433.0,68432.0,0.41776112]
[1730633639091,0.00264,68433.0,68432.0,0.44698112]
[1730633640471,0.00264,68433.0,68432.0,0.44498112]
[1730633641315,0.00264,68433.0,68432.0,0.55442227]
[1730633641729,0.00264,68433.0,68432.0,0.44498112]
[1730633642963,0.00264,68433.0,68432.0,0.44698112]
[1730633643189,0.00264,68433.0,68432.0,0.44498112]
[1730633643414,0.00264,68433.0,68432.0,0.55440956]
[1730633643723,0.00264,68433.0,68432.0,0.54940956]
[1730633643929,0.00264,68433.0,68432.0,0.48209517]
[1730633644126,0.12434,68433.0,68432.0,0.46021087]
[1730633644330,0.12434,68433.0,68432.0,0.23301704]
[1730633644552,0.12434,68433.0,68432.0,0.27678652]
[1730633644740,0.12434,68433.0,68432.0,0.23301704]
[1730633645956,0.12434,68433.0,68432.0,0.22801704]
[1730633646205,0.12434,68433.0,68432.0,0.23301704]
[1730633646412,0.12434,68433.0,68432.0,0.22801704]
[1730633646836,0.12434,68433.0,68432.0,0.19879704]
[1730633647047,0.13797743,68433.0,68432.0,0.19879704]
[1730633647272,0.12434,68433.0,68432.0,0.19879704]
[1730633647535,0.13697411,68433.0,68432.0,0.18679704]
[1730633647760,0.13697411,68433.0,68432.0,0.19879704]
[1730633648198,0.13697411,68433.0,68432.0,0.18679704]
[1730633648418,0.12334,68433.0,68432.0,0.18679704]
[1730633648628,0.12334,68433.0,68432.0,0.17979704]
[1730633648846,0.12334,68433.0,68432.0,0.18879704]
[1730633649019,0.12334,68433.0,68432.0,0.18279704]
[1730633649220,0.12334,68433.0,68432.0,0.17379704]
[1730633649435,0.12334,68433.0,68432.0,0.17679704]
[1730633650394,0.12334,68433.0,68432.0,0.17979704]
[1730633650972,0.12334,68433.0,68432.0,0.17379704]
[1730633651143,0.12334,68433.0,68432.0,0.17979704]
[1730633651347,0.12334,68433.0,68432.0,0.17579704]
[1730633651881,0.00164,68433.0,68432.0,0.18379704]
[1730633652084,0.00164,68433.0,68432.0,0.17879704]
[1730633652257,0.00164,68433.0,68432.0,0.18479704]
[1730633652459,0.00164,68433.0,68432.0,0.18779704]
[1730633652672,0.00164,68433.0,68432.0,0.18179704]
[1730633652836,0.04684,68433.0,68432.0,0.17679704]
[1730633653848,0.12994,68433.0,68432.0,0.17679704]
[1730633654098,0.12994,68433.0,68432.0,0.17879704]
[1730633654322,0.12994,68433.0,68432.0,0.17379704]
[1730633654548,0.12994,68433.0,68432.0,0.17479704]
[1730633654765,0.12994,68433.0,68432.0,0.17879704]
[1730633654975,0.12994,68433.0,68432.0,0.17379704]
[1730633655196,0.12994,68433.0,68432.0,0.17879704]
[1730633655423,0.12994,68433.0,68432.0,0.15579704]
[1730633655663,0.14356598,68433.0,68432.0,0.14679704]
[1730633655906,0.14356598,68433.0,68432.0,0.15379704]
[1730633656819,0.14356598,68433.0,68432.0,0.14879704]
[1730633657040,0.14356598,68433.0,68432.0,0.15379704]
[1730633657286,0.14356598,68433.0,68432.0,0.14579704]
[1730633657517,0.14356598,68433.0,68432.0,0.001]
[1730633657784,0.14356598,68433.0,68432.0,0.002]
[1730633658657,0.14356598,68433.0,68432.0,0.15279704]
[1730633660074,0.09836598,68433.0,68432.0,0.15279704]
[1730633660877,0.09836598,68433.0,68432.0,0.15179704]
[1730633661073,0.09837413,68433.0,68432.0,0.15079704]
[1730633661470,0.09837413,68433.0,68432.0,0.15279704]
[1730633661901,0.09837413,68433.0,68432.0,0.15079704]
[1730633662102,0.09837413,68433.0,68432.0,0.15279704]
[1730633662317,0.01527413,68433.0,68432.0,0.15279704]
[1730633662522,0.01527413,68433.0,68432.0,0.17579704]
[1730633663328,0.01527413,68433.0,68432.0,0.17479704]
[1730633663771,0.01527413,68433.0,68432.0,0.17579704]
[1730633664171,0.01527413,68433.0,68432.0,0.17379704]
[1730633664371,0.01627413,68433.0,68432.0,0.17379704]
[1730633664582,0.01627413,68433.0,68432.0,0.17479704]
[1730633664994,0.01627413,68433.0,68432.0,0.17379704]
[1730633665256,0.01527413,68433.0,68432.0,0.17379704]
[1730633665488,0.01627413,68433.0,68432.0,0.17379704]
[1730633665842,0.01527413,68433.0,68432.0,0.17749695]
[1730633666269,0.01727413,68433.0,68432.0,0.17749695]
[1730633666622,0.01927413,68433.0,68432.0,0.17749695]
[1730633667028,0.01927413,68433.0,68432.0,0.17379704]
[1730633667229,0.01927413,68433.0,68432.0,0.15079704]
[1730633667230,0.14467413,68433.0,68432.0,0.15079704]
[1730633667979,0.16651025,68433.0,68432.0,0.15079704]
[1730633670260,0.16451025,68433.0,68432.0,0.15079704]
[1730633670628,0.16251025,68433.0,68432.0,0.15679704]
[1730633670998,0.12704,68433.0,68432.0,0.15579704]
[1730633671207,0.16252746,68433.0,68432.0,0.15579704]
[1730633671405,0.16352746,68433.0,68432.0,0.15779704]
[1730633671625,0.16252746,68433.0,68432.0,0.15079704]
[1730633672003,0.16252746,68433.0,68432.0,0.15679704]
[1730633672792,0.16252746,68433.0,68432.0,0.16179704]
[1730633673140,0.16252746,68433.0,68432.0,0.011]
[1730633673354,0.16252746,68433.0,68432.0,0.005]
[1730633673562,0.14068902,68433.0,68432.0,0.005]
[1730633673764,0.16255282,68433.0,68432.0,0.011]
[1730633673988,0.16255282,68433.0,68432.0,0.005]
[1730633674409,0.16255282,68433.0,68432.0,0.011]
[1730633674615,0.16255282,68433.0,68431.0,0.00581637]
[1730633674778,0.03551282,68432.0,68431.0,0.00581637]
[1730633674985,0.16091282,68432.0,68431.0,0.00581637]
[1730633675206,0.16091282,68432.0,68431.0,0.00362464]
[1730633676739,0.16291282,68432.0,68431.0,0.00362464]
[1730633677476,0.16491282,68432.0,68431.0,0.00362464]
[1730633677912,0.16091282,68432.0,68431.0,0.00362464]
[1730633678118,0.16291282,68432.0,68431.0,0.00362464]
[1730633678339,0.18765205,68432.0,68431.0,0.00362464]
[1730633678579,0.18565205,68432.0,68431.0,0.00362464]
[1730633679016,0.18365205,68432.0,68431.0,0.00362464]
[1730633679218,0.18665205,68432.0,68431.0,0.00362464]
[1730633679694,0.18965205,68432.0,68431.0,0.00362464]
[1730633680376,0.20878126,68432.0,68431.0,0.00362464]
[1730633681259,0.18604203,68432.0,68431.0,0.00362464]
[1730633681479,0.1314,68432.0,68431.0,0.00362464]
[1730633681707,0.16685607,68432.0,68431.0,0.00362464]
[1730633682165,0.31265311,68432.0,68431.0,0.00362464]
[1730633682386,0.31465311,68432.0,68431.0,0.00362464]
[1730633682587,0.34864359,68432.0,68431.0,0.00362464]
[1730633682779,0.39225525,68432.0,68431.0,0.00362464]
[1730633683021,0.34864359,68432.0,68431.0,0.00362464]
[1730633683222,0.34564359,68432.0,68431.0,0.00362464]
[1730633683343,0.34864359,68432.0,68431.0,0.00362464]
[1730633683536,0.34564359,68432.0,68431.0,0.00362464]
[1730633683944,0.34564359,68432.0,68431.0,0.00462464]
[1730633683945,0.35164359,68432.0,68431.0,0.00462464]
[1730633684152,0.39225525,68432.0,68431.0,0.00462464]
[1730633684377,0.34864359,68432.0,68431.0,0.00462464]
[1730633684762,0.39525525,68432.0,68431.0,0.00462464]
[1730633684915,0.35979918,68432.0,68431.0,0.00462464]
[1730633685122,0.37860244,68432.0,68431.0,0.00462464]
[1730633685320,0.40122947,68432.0,68431.0,0.00562464]
[1730633685508,0.35761781,68432.0,68431.0,0.00562464]
[1730633685694,0.40119495,68432.0,68431.0,0.00562464]
[1730633686299,0.35761781,68432.0,68431.0,0.00562464]
[1730633686713,0.36261781,68432.0,68431.0,0.00562464]
[1730633686917,0.51860312,68432.0,68431.0,0.00562464]
[1730633687182,0.6057574,68432.0,68431.0,0.00562464]
[1730633687406,0.0295,68430.0,68429.0,0.000819]
[1730633687625,0.48434695,68430.0,68429.0,0.000819]
[1730633687800,0.59322963,68430.0,68429.0,0.000819]
[1730633688242,0.0201,68422.0,68416.0,0.21902447]
[1730633688470,0.005,68423.0,68416.0,0.21902447]
[1730633688471,0.0757,68417.0,68416.0,0.21902447]
[1730633688662,0.0757,68417.0,68404.0,0.001654]
[1730633688663,0.25692733,68417.0,68404.0,0.001654]
[1730633688886,0.22402447,68413.0,68407.0,0.00082]
[1730633689120,0.02267645,68409.0,68407.0,0.00082]
[1730633689342,0.03543029,68408.0,68407.0,0.00082]
[1730633689741,0.08932703,68408.0,68407.0,0.00082]
[1730633689949,0.11113029,68408.0,68407.0,0.00082]
[1730633690141,0.12771332,68408.0,68407.0,0.00082]
[1730633690376,0.10591006,68408.0,68407.0,0.00082]
[1730633690588,0.18441332,68408.0,68407.0,0.00182]
[1730633690812,0.17741332,68408.0,68407.0,0.00082]
[1730633691032,0.17741332,68408.0,68407.0,0.00282]
[1730633691685,0.18041332,68408.0,68407.0,0.00282]
[1730633691894,0.14498303,68408.0,68407.0,0.00282]
[1730633692046,0.18029501,68408.0,68407.0,0.00282]
[1730633692225,0.17729501,68408.0,68407.0,0.00282]
[1730633692444,0.32309205,68408.0,68407.0,0.00282]
[1730633692665,0.32509205,68408.0,68407.0,0.00082]
[1730633692874,0.32809205,68408.0,68407.0,0.00082]
[1730633693075,0.32609205,68408.0,68407.0,0.00082]
[1730633693303,0.32309205,68408.0,68407.0,0.00082]
[1730633693683,0.31450902,68408.0,68407.0,0.00082]
[1730633693890,0.27919704,68408.0,68407.0,0.00082]
[1730633694277,0.27119704,68408.0,68407.0,0.00082]
[1730633694483,0.27519704,68408.0,68407.0,0.00082]
[1730633694685,0.29376648,68408.0,68407.0,0.00082]
[1730633694885,0.32407581,68408.0,68407.0,0.00082]
[1730633695107,0.34578691,68408.0,68407.0,0.00082]
[1730633695317,0.35178691,68408.0,68407.0,0.00082]
[1730633696115,0.34678691,68408.0,68407.0,0.00082]
[1730633696665,0.34078691,68408.0,68407.0,0.00082]
[1730633696972,0.36178691,68408.0,68407.0,0.00282]
[1730633697170,0.35478691,68408.0,68407.0,0.00182]
[1730633697373,0.34078691,68408.0,68407.0,0.00082]
[1730633697579,0.34078691,68408.0,68407.0,0.00182]
[1730633697580,0.35378691,68408.0,68407.0,0.00182]
[1730633697774,0.36178691,68408.0,68407.0,0.00282]
[1730633698610,0.35378691,68408.0,68407.0,0.00182]
[1730633699233,0.34578691,68408.0,68407.0,0.00082]
[1730633699431,0.35978691,68408.0,68407.0,0.00182]
[1730633699947,0.37378691,68408.0,68407.0,0.00282]
[1730633700293,0.37378691,68408.0,68407.0,0.00182]
[1730633700294,0.35978691,68408.0,68407.0,0.00182]
[1730633700500,0.36178691,68408.0,68407.0,0.00182]
[1730633700813,0.37378691,68408.0,68407.0,0.00282]
[1730633701414,0.37578691,68408.0,68407.0,0.00282]
[1730633701592,0.37378691,68408.0,68407.0,0.00282]
[1730633701992,0.35207086,68408.0,68407.0,0.00282]
[1730633702244,0.37377404,68408.0,68407.0,0.00282]
[1730633704969,0.37377404,68408.0,68407.0,0.0017636]
[1730633706229,0.005,68407.0,68406.0,0.00865669]
[1730633706494,0.22364211,68407.0,68406.0,0.00865669]
[1730633707737,0.23764211,68407.0,68406.0,0.00965669]
[1730633708748,0.25164211,68407.0,68406.0,0.00965669]
[1730633709206,0.25168322,68407.0,68406.0,0.00965669]
[1730633710354,0.23768322,68407.0,68406.0,0.00865669]
[1730633710556,0.23768322,68407.0,68406.0,0.00965669]
[1730633711181,0.23768322,68407.0,68406.0,0.01047569]
[1730633712085,0.25168322,68407.0,68406.0,0.01047569]
[1730633713417,0.25168322,68407.0,68404.0,0.001654]
[1730633713418,0.005,68405.0,68404.0,0.001654]
[1730633713635,0.22381414,68405.0,68404.0,0.001654]
[1730633714565,0.23781414,68405.0,68404.0,0.002654]
[1730633715624,0.23781414,68405.0,68404.0,0.003654]
[1730633715625,0.25181414,68405.0,68404.0,0.003654]
[1730633716031,0.22381414,68405.0,68404.0,0.001654]
[1730633716272,0.22381414,68405.0,68404.0,0.002654]
[1730633716273,0.20010582,68405.0,68404.0,0.002654]
[1730633716421,0.2142464,68405.0,68404.0,0.003654]
[1730633716804,0.2092464,68405.0,68404.0,0.003654]
[1730633717003,0.2092464,68405.0,68404.0,0.002654]
[1730633717004,0.1952464,68405.0,68404.0,0.002654]
[1730633717258,0.22784104,68405.0,68404.0,0.002654]
[1730633717471,0.22284104,68405.0,68404.0,0.002654]
[1730633718066,0.23684104,68405.0,68404.0,0.002654]
[1730633718426,0.22284104,68405.0,68404.0,0.001654]
[1730633719058,0.20923361,68405.0,68404.0,0.001654]
[1730633719439,0.20888481,68405.0,68404.0,0.001654]
[1730633719555,0.22288481,68405.0,68404.0,0.002654]
[1730633719752,0.23688481,68405.0,68404.0,0.003654]
[1730633719970,0.23688481,68405.0,68404.0,0.002654]
[1730633720174,0.22288481,68405.0,68404.0,0.002654]
[1730633720411,0.23688481,68405.0,68404.0,0.003654]
[1730633721049,0.06349313,68405.0,68404.0,0.003654]
[1730633721606,0.20929017,68405.0,68404.0,0.003654]
[1730633721805,0.28749017,68405.0,68404.0,0.003654]
[1730633723203,0.28912817,68405.0,68404.0,0.003654]
[1730633723459,0.29412817,68405.0,68404.0,0.003654]
[1730633723677,0.33045099,68405.0,68404.0,0.003654]
[1730633724275,0.32845099,68405.0,68404.0,0.003654]
[1730633726484,0.33045099,68405.0,68404.0,0.003654]
[1730633727767,0.33045099,68405.0,68400.0,4e-05]
[1730633727768,0.007,68401.0,68400.0,4e-05]
[1730633727968,0.52522142,68401.0,68400.0,4e-05]
[1730633728169,0.61230306,68401.0,68400.0,4e-05]
[1730633728326,0.005,68395.0,68391.0,0.18613353]
[1730633728552,0.18129017,68394.0,68383.0,0.21902447]
[1730633728779,0.03549313,68393.0,68383.0,0.21902447]
[1730633728981,0.005,68395.0,68382.0,0.000827]
[1730633728982,0.0803,68391.0,68382.0,0.000827]
[1730633729182,0.18129017,68390.0,68382.0,0.000827]
[1730633729420,0.03549313,68389.0,68382.0,0.000827]
[1730633729789,0.18129017,68388.0,68382.0,0.000827]
[1730633730007,0.03549313,68387.0,68382.0,0.000827]
[1730633730221,0.0803,68391.0,68382.0,0.000827]
[1730633730222,0.18129017,68386.0,68382.0,0.001827]
[1730633730459,0.03548006,68385.0,68382.0,0.000827]
[1730633730641,0.03548006,68384.0,68382.0,0.000827]
[1730633730847,0.02183388,68383.0,68382.0,0.000827]
[1730633730983,0.03548006,68383.0,68382.0,0.000827]
[1730633731191,0.05430777,68383.0,68382.0,0.000827]
[1730633731391,0.03548006,68383.0,68382.0,0.000827]
[1730633733044,0.04148006,68383.0,68382.0,0.000827]
[1730633733458,0.04848006,68383.0,68382.0,0.000827]
[1730633734440,0.04846021,68383.0,68382.0,0.000827]
[1730633739294,0.04846021,68383.0,68382.0,0.081927]
[1730633740875,0.013,68383.0,68382.0,0.081927]
[1730633741265,0.04845171,68383.0,68382.0,0.081927]
[1730633742126,0.04845171,68383.0,68382.0,0.128027]
[1730633742494,0.04845171,68383.0,68382.0,0.133027]
[1730633742985,0.02663527,68383.0,68382.0,0.133027]
[1730633743748,0.01363527,68383.0,68382.0,0.133027]
[1730633743955,0.01463527,68383.0,68382.0,0.133027]
[1730633744425,0.01463527,68383.0,68382.0,0.27882404]
[1730633744637,0.001,68383.0,68382.0,0.27882404]
[1730633744854,0.01463878,68383.0,68382.0,0.27882404]
[1730633745294,0.01363878,68383.0,68382.0,0.27882404]
[1730633745512,0.01363878,68383.0,68382.0,0.30182404]
[1730633745727,0.01463878,68383.0,68382.0,0.30282404]
[1730633745982,0.01463878,68383.0,68382.0,0.30482404]
[1730633746422,0.01363878,68383.0,68382.0,0.30382404]
[1730633746647,0.01363878,68383.0,68382.0,0.30182404]
[1730633746857,0.01363878,68383.0,68382.0,0.30750346]
[1730633747079,0.24084652,68390.0,68389.0,0.005]
[1730633747293,0.23266377,68390.0,68389.0,0.1322]
[1730633747532,0.0136393,68390.0,68389.0,0.1322]
[1730633747874,0.0136393,68390.0,68389.0,0.30599704]
[1730633748229,0.0136397,68390.0,68389.0,0.17379704]
[1730633748705,0.0166397,68390.0,68389.0,0.17379704]
[1730633748953,0.0166397,68390.0,68389.0,0.30099704]
[1730633749436,0.0136397,68390.0,68389.0,0.30599704]
[1730633749678,0.001638,68391.0,68390.0,0.1652]
[1730633749908,0.02182353,68404.0,68390.0,0.1652]
[1730633749909,0.01363872,68403.0,68402.0,0.005]
[1730633750140,0.01363872,68403.0,68402.0,0.27799704]
[1730633750371,0.01363872,68403.0,68402.0,0.30099704]
[1730633750576,0.001638,68405.0,68404.0,0.1552]
[1730633750783,0.001638,68405.0,68404.0,0.30099704]
[1730633751384,0.001638,68405.0,68404.0,0.30599704]
[1730633751808,0.001638,68405.0,68404.0,0.30799704]
[1730633752595,0.003638,68405.0,68404.0,0.30599704]
[1730633753033,0.003638,68405.0,68404.0,0.31299704]
[1730633753892,0.006638,68405.0,68404.0,0.31299704]
[1730633754319,0.004638,68405.0,68404.0,0.30799704]
[1730633754481,0.001638,68405.0,68404.0,0.30799704]
[1730633754676,0.003638,68405.0,68404.0,0.31699704]
[1730633755078,0.002638,68405.0,68404.0,0.31599704]
[1730633755292,0.003638,68405.0,68404.0,0.31699704]
[1730633755724,0.21902447,68414.0,68413.0,0.005]
[1730633755972,0.21902447,68414.0,68413.0,0.30809704]
[1730633756170,0.001638,68428.0,68420.0,0.1343]
[1730633756343,0.001638,68428.0,68420.0,0.28009704]
[1730633756547,0.001638,68428.0,68420.0,0.27809704]
[1730633756980,0.001638,68428.0,68423.0,0.0496]
[1730633756981,0.22066247,68428.0,68423.0,0.0496]
[1730633757159,0.22066247,68428.0,68424.0,0.16879704]
[1730633757553,0.001638,68428.0,68424.0,0.16879704]
[1730633758313,0.009638,68428.0,68424.0,0.16879704]
[1730633758675,0.011638,68428.0,68424.0,0.16879704]
[1730633759688,0.011638,68428.0,68424.0,0.16679704]
[1730633759900,0.009638,68428.0,68424.0,0.16679704]
[1730633760512,0.018638,68428.0,68424.0,0.16779704]
[1730633761376,0.018638,68428.0,68424.0,0.001]
[1730633770640,0.009638,68428.0,68422.0,0.0029227]
[1730633771086,0.009638,68428.0,68424.0,0.004819]
[1730633771580,0.001638,68428.0,68424.0,0.000819]
[1730633771819,0.002638,68428.0,68424.0,0.000819]
[1730633772327,0.003638,68428.0,68426.0,0.0499]
[1730633772578,0.002638,68428.0,68426.0,0.0499]
[1730633773048,0.003638,68428.0,68426.0,0.0499]
[1730633773277,0.002638,68428.0,68426.0,0.0499]
[1730633774140,0.002638,68428.0,68425.0,0.14579704]
[1730633774656,0.001638,68428.0,68425.0,0.14579704]
[1730633774875,0.001638,68428.0,68424.0,0.000819]
[1730633774876,0.29402447,68427.0,68424.0,0.000819]
[1730633775113,0.04314927,68426.0,68424.0,0.000819]
[1730633775359,0.075,68427.0,68424.0,0.000819]
[1730633775360,0.01358302,68425.0,68424.0,0.000819]
[1730633776359,0.03531585,68425.0,68424.0,0.000819]
[1730633776581,0.03531585,68425.0,68424.0,0.002819]
[1730633777483,0.03831585,68425.0,68424.0,0.002819]
[1730633777895,0.03831585,68425.0,68424.0,0.000819]
[1730633778100,0.04981124,68425.0,68424.0,0.000819]
[1730633778311,0.08951585,68425.0,68424.0,0.000819]
[1730633779050,0.16251585,68425.0,68424.0,0.000819]
[1730633779453,0.16751585,68425.0,68424.0,0.000819]
[1730633779736,0.16751585,68425.0,68424.0,0.001819]
[1730633779897,0.17651585,68425.0,68424.0,0.001819]
[1730633781968,0.32395417,68425.0,68424.0,0.001819]
[1730633782193,0.34578096,68425.0,68424.0,0.001819]
[1730633782610,0.35078096,68425.0,68424.0,0.001819]
[1730633782961,0.34178096,68425.0,68424.0,0.000819]
[1730633783340,0.35078096,68425.0,68424.0,0.001819]
[1730633783754,0.34178096,68425.0,68424.0,0.000819]
[1730633784180,0.34478096,68425.0,68424.0,0.001819]
[1730633784394,0.35778096,68425.0,68424.0,0.001819]
[1730633784864,0.34678096,68425.0,68424.0,0.001819]
[1730633785063,0.34678096,68425.0,68398.0,0.0807]
[1730633785064,0.1242,68418.0,68398.0,0.0807]
[1730633785283,0.01292,68417.0,68412.0,0.21902447]
[1730633785475,0.03544043,68417.0,68398.0,0.0807]
[1730633785684,0.03544043,68416.0,68398.0,0.0807]
[1730633786065,0.03544043,68415.0,68406.0,0.21902447]
[1730633786278,0.01363093,68414.0,68398.0,0.23149704]
[1730633786494,0.01363093,68413.0,68398.0,0.22649704]
[1730633786708,0.03544043,68412.0,68398.0,0.22649704]
[1730633786925,0.01363093,68411.0,68398.0,0.22649704]
[1730633787143,0.03544043,68410.0,68398.0,0.22649704]
[1730633787418,0.03544043,68409.0,68398.0,0.22649704]
[1730633787646,0.21902447,68414.0,68398.0,0.22649704]
[1730633787647,0.03544043,68408.0,68398.0,0.22649704]
[1730633787857,0.03544043,68407.0,68398.0,0.22649704]
[1730633788079,0.03544043,68406.0,68398.0,0.22649704]
[1730633788331,0.03544043,68405.0,68398.0,0.22649704]
[1730633788568,0.2544649,68404.0,68398.0,0.0807]
[1730633788780,0.2544649,68404.0,68396.0,0.0499]
[1730633788781,0.03544043,68404.0,68396.0,0.0499]
[1730633788990,0.0826,68408.0,68396.0,0.19569704]
[1730633788991,0.03544043,68403.0,68396.0,0.19569704]
[1730633789201,0.01363093,68402.0,68396.0,0.19569704]
[1730633789432,0.03544043,68401.0,68398.0,0.007]
[1730633789675,0.01363093,68400.0,68398.0,0.007]
[1730633789871,0.001,68406.0,68396.0,0.19569704]
[1730633789872,0.01363093,68399.0,68396.0,0.19569704]
[1730633790103,0.01363093,68398.0,68396.0,0.20269704]
[1730633790334,0.02178245,68403.0,68396.0,0.20269704]
[1730633790559,0.01361201,68402.0,68396.0,0.20269704]